bitfinex/quotes_SOLUSD_20220129
["timestamp","ask_amount","ask_price","bid_price","bid_amount"]
[1643430895316,38.65312406,93.149,93.042,0.25]
[1643430895515,38.65312406,93.149,93.051,6.0]
[1643430895719,38.65312406,93.149,93.052,108.8]
[1643430895915,38.65312406,93.149,93.052,109.05]
[1643430896117,38.65312406,93.149,93.063,108.8]
[1643430896315,47.6816,93.159,93.064,0.25]
[1643430896515,47.6816,93.159,93.073,6.0]
[1643430896719,47.6816,93.159,93.074,108.8]
[1643430897017,15.48,93.16,93.074,109.05]
[1643430897216,37.4045657,93.159,93.074,108.8]
[1643430897416,37.4045657,93.159,93.075,0.25]
[1643430898416,37.4045657,93.159,93.068,535.64205263]
[1643430898417,2.95669142,93.158,93.068,535.64205263]
[1643430898819,22.3866336,93.158,93.068,535.64205263]
[1643430899027,16.124,93.15,93.068,535.64205263]
[1643430899255,15.48,93.14,93.068,535.64205263]
[1643430899422,40.21116514,93.139,93.068,535.64205263]
[1643430899819,48.21116514,93.139,93.068,535.64205263]
[1643430900219,2.95669142,93.138,93.068,535.64205263]
[1643430900420,48.21116514,93.139,93.02,16.121]
[1643430900720,48.21116514,93.139,93.021,5.53071151]
[1643430900919,40.21116514,93.139,93.022,5.28071151]
[1643430901322,40.21116514,93.139,93.032,6.0]
[1643430901518,40.21116514,93.139,93.033,114.08071151]
[1643430901718,40.21116514,93.139,93.034,5.28071151]
[1643430901924,40.21116514,93.139,93.035,0.25]
[1643430902324,15.48,93.14,93.035,0.25]
[1643430902325,15.48,93.14,93.041,108.8]
[1643430902521,15.48,93.16,93.051,6.0]
[1643430902920,15.48,93.16,93.052,109.05]
[1643430903120,15.48,93.16,93.063,108.8]
[1643430903321,36.4788156,93.159,93.064,0.25]
[1643430903923,43.4788156,93.159,93.064,0.25]
[1643430904921,36.4788156,93.159,93.064,0.25]
[1643430905324,36.4788156,93.159,93.073,6.0]
[1643430905723,36.4788156,93.159,93.074,0.25]
[1643430905926,36.4788156,93.159,93.068,108.8]
[1643430906123,36.4788156,93.159,93.078,6.0]
[1643430908326,36.4788156,93.159,93.068,108.8]
[1643430908527,36.4788156,93.159,93.021,4.397167]
[1643430908726,25.88159142,93.158,93.031,0.25]
[1643430908929,25.88159142,93.158,93.032,114.08927003]
[1643430909128,2.95669142,93.157,93.033,5.28927003]
[1643430909327,16.121,93.15,93.034,108.8]
[1643430909529,15.48,93.14,93.034,108.8]
[1643430909735,41.90243782,93.139,93.035,5.28927003]
[1643430909929,41.90243782,93.139,93.011,5.28927003]
[1643430910131,44.85912924,93.139,93.007,5.28927003]
[1643430910331,2.95669142,93.138,93.017,108.8]
[1643430910533,44.64480183,93.119,93.018,5.28927003]
[1643430911129,44.64480183,93.119,93.017,114.8]
[1643430911330,44.64480183,93.119,93.017,6.0]
[1643430911532,44.64480183,93.119,93.014,6.0]
[1643430911732,31.608,93.11,92.991,24.7152]
[1643430911931,31.608,93.11,93.005,5.29346091]
[1643430912130,0.25,93.109,93.005,5.29346091]
[1643430912333,3.20669142,93.109,93.005,5.29346091]
[1643430912531,3.20669142,93.109,92.978,108.8]
[1643430912532,2.95669142,93.108,92.978,108.8]
[1643430912732,2.95669142,93.108,92.966,4.397167]
[1643430912933,0.3159131,93.073,92.94,15.48]
[1643430913133,0.3050272,93.043,92.914,7.31093393]
[1643430913332,0.31401946,93.017,92.931,5.22320501]
[1643430913538,45.89113017,93.009,92.931,5.22320501]
[1643430913734,45.89113017,93.009,92.872,8.17120321]
[1643430913932,45.89113017,93.009,92.88,10.0]
[1643430913933,0.25,93.008,92.88,10.0]
[1643430914132,0.25,93.008,92.871,22.8915]
[1643430914133,25.54032805,93.008,92.878,108.8]
[1643430914359,25.29032805,93.007,92.878,108.8]
[1643430914565,25.29032805,93.007,92.871,22.8915]
[1643430914759,3.20669142,93.006,92.871,22.8915]
[1643430914961,16.148,93.0,92.871,22.8915]
[1643430915160,40.71317752,92.989,92.871,22.8915]
[1643430915360,40.71317752,92.989,92.85,16.151]
[1643430915559,0.25,92.988,92.85,16.151]
[1643430915959,4.25,92.988,92.85,16.151]
[1643430916359,16.15,92.98,92.852,108.8]
[1643430916559,38.20395366,92.969,92.86,16.149]
[1643430916759,38.20395366,92.969,92.861,108.8]
[1643430916960,38.20395366,92.969,92.862,222.5]
[1643430917360,0.25,92.968,92.862,113.7]
[1643430917762,0.25,92.968,92.87,16.147]
[1643430918566,0.25,92.968,92.845,48.1078]
[1643430919365,0.25,92.968,92.85,16.15]
[1643430920969,16.152,92.96,92.851,108.8]
[1643430921168,16.152,92.96,92.85,16.15]
[1643430921370,0.25,92.959,92.85,16.15]
[1643430921570,0.25,92.959,92.845,24.18]
[1643430921969,0.25,92.959,92.844,460.25220562]
[1643430922870,16.154,92.95,92.844,460.25220562]
[1643430923070,42.98185821,92.949,92.854,6.0]
[1643430923273,43.23185821,92.949,92.855,0.25]
[1643430924070,16.156,92.94,92.834,6.0]
[1643430924269,0.25,92.939,92.835,0.25]
[1643430925072,0.25,92.939,92.805,5.75]
[1643430925273,0.25,92.939,92.806,4.93105266]
[1643430925671,0.25,92.939,92.81,16.157]
[1643430925971,0.25,92.939,92.811,4.93105266]
[1643430926971,39.35188559,92.929,92.811,4.93105266]
[1643430927171,12.93,92.92,92.82,16.156]
[1643430927372,0.25,92.919,92.821,6.25]
[1643430927572,0.25,92.919,92.83,6.0]
[1643430927775,0.25,92.919,92.831,6.25]
[1643430927973,0.25,92.919,92.831,0.25]
[1643430929476,0.25,92.919,92.802,6.0]
[1643430929675,0.25,92.919,92.81,6.0]
[1643430929876,0.25,92.919,92.811,4.9311737]
[1643430930076,0.25,92.919,92.821,6.0]
[1643430930875,0.25,92.919,92.792,22.8645]
[1643430930876,0.25,92.919,92.822,0.25]
[1643430931076,16.161,92.91,92.822,0.25]
[1643430931279,37.7505158,92.909,92.822,0.25]
[1643430931776,37.7505158,92.909,92.799,0.25]
[1643430931978,37.7505158,92.909,92.8,4.9317777]
[1643430932377,37.7505158,92.909,92.81,6.0]
[1643430932576,37.7505158,92.909,92.811,4.9317777]
[1643430932779,37.7505158,92.909,92.811,5.1817777]
[1643430933009,16.163,92.9,92.811,5.1817777]
[1643430933176,16.163,92.9,92.812,4.9317777]
[1643430933376,37.5005158,92.909,92.9,20.75343082]
[1643430933777,12.93,92.91,92.9,20.75343082]
[1643430934178,12.93,92.93,92.9,20.75343082]
[1643430934377,29.085,92.95,92.9,20.75343082]
[1643430934781,44.79517804,92.949,92.9,20.75343082]
[1643430935381,0.25,92.948,92.9,20.75343082]
[1643430935581,44.79517804,92.949,92.9,20.75343082]
[1643430935780,108.8,93.028,92.9,20.75343082]
[1643430935781,22.608,93.017,92.901,0.25]
[1643430935982,22.608,93.017,92.91,6.0]
[1643430935983,12.93,93.01,92.91,6.0]
[1643430936181,12.93,93.02,92.91,6.0]
[1643430936481,23.9573,93.039,92.911,0.25]
[1643430936680,40.37102776,93.038,92.911,0.25]
[1643430937080,40.37102776,93.038,92.911,6.25]
[1643430937283,40.37102776,93.038,92.92,6.0]
[1643430937480,40.37102776,93.038,92.921,108.8]
[1643430937681,40.37102776,93.038,92.921,115.05]
[1643430937884,40.37102776,93.038,92.922,4.74411687]
[1643430938082,40.37102776,93.038,92.932,6.0]
[1643430938285,0.25,93.037,92.932,6.0]
[1643430938483,3.20669142,93.037,92.933,0.25]
[1643430938882,2.95669142,93.036,92.933,0.25]
[1643430939287,0.25,93.035,92.933,0.25]
[1643430939682,16.141,93.03,92.919,0.25]
[1643430939883,0.25,93.029,92.911,0.25]
[1643430940084,0.25,93.029,92.918,6.0]
[1643430940283,1.75,93.029,92.92,6.0]
[1643430940705,1.75,93.029,92.929,6.0]
[1643430940910,1.75,93.029,92.93,4.99782291]
[1643430941307,1.75,93.029,92.931,4.74782291]
[1643430941707,16.143,93.02,92.932,0.25]
[1643430941907,33.90397855,93.019,92.932,0.25]
[1643430942508,33.90397855,93.019,92.933,4.74782291]
[1643430942808,33.90397855,93.019,92.934,0.25]
[1643430943009,33.90397855,93.019,92.935,4.74782291]
[1643430943208,54.60397855,93.019,92.935,4.74782291]
[1643430943408,54.60397855,93.019,92.936,0.25]
[1643430943708,54.60397855,93.019,92.937,4.74782291]
[1643430943910,54.60397855,93.019,92.938,0.25]
[1643430944109,16.144,93.01,92.939,4.74782291]
[1643430944309,0.25,93.009,92.939,4.74782291]
[1643430944509,0.25,93.009,92.912,4.74782291]
[1643430944710,0.25,93.009,92.912,0.25]
[1643430944909,0.25,93.009,92.922,6.0]
[1643430945112,16.146,93.0,92.923,4.7710043]
[1643430945312,41.26110399,92.999,92.923,4.7710043]
[1643430945512,41.26110399,92.999,92.9,20.75343082]
[1643430945513,44.21779541,92.999,92.901,4.7710043]
[1643430945711,2.95669142,92.998,92.901,5.0210043]
[1643430945910,0.25,92.997,92.902,4.7710043]
[1643430946410,2.95669142,92.996,92.903,0.25]
[1643430946610,2.95669142,92.996,92.904,4.7710043]
[1643430946809,0.25,92.995,92.905,0.25]
[1643430947010,16.15,92.98,92.906,4.7710043]
[1643430947211,42.34572904,92.979,92.906,4.7710043]
[1643430947410,42.34572904,92.979,92.9,20.75343082]
[1643430947810,2.95669142,92.978,92.9,20.75343082]
[1643430948212,0.25,92.977,92.9,20.75343082]
[1643430948915,2.95669142,92.976,92.9,20.75343082]
[1643430949114,16.153,92.96,92.84,7.70763803]
[1643430949315,12.93,92.95,92.812,12.1975015]
[1643430949614,72.5199,92.949,92.813,4.48986347]
[1643430949814,0.25,92.948,92.813,4.48986347]
[1643430950017,0.3017642,92.944,92.814,4.48986347]
[1643430950215,39.93648532,92.929,92.814,4.48986347]
[1643430950416,0.25,92.928,92.815,4.48986347]
[1643430950620,0.25,92.928,92.816,4.48986347]
[1643430950817,16.165,92.89,92.817,4.48986347]
[1643430951018,43.19068398,92.879,92.769,7.18847257]
[1643430951218,43.19068398,92.879,92.769,11.43745745]
[1643430951421,0.25,92.878,92.751,11.43745745]
[1643430951819,16.169,92.87,92.752,108.8]
[1643430952021,12.93,92.86,92.753,11.43745745]
[1643430952220,35.11804699,92.859,92.762,6.0]
[1643430952422,35.36804699,92.859,92.763,10.49898488]
[1643430952720,35.11804699,92.859,92.764,4.24898488]
[1643430952920,0.25,92.858,92.773,6.0]
[1643430953123,0.25,92.858,92.774,10.24898488]
[1643430953321,0.25,92.858,92.775,4.49898488]
[1643430953722,0.25,92.858,92.776,4.24898488]
[1643430954321,2.25,92.858,92.776,4.24898488]
[1643430955323,0.25,92.858,92.776,4.24898488]
[1643430955726,35.11804699,92.859,92.786,6.0]
[1643430955923,35.11804699,92.859,92.787,4.24898488]
[1643430956122,35.11804699,92.859,92.797,6.0]
[1643430956323,35.11804699,92.859,92.798,4.24898488]
[1643430956525,35.11804699,92.859,92.778,4.24898488]
[1643430956924,35.11804699,92.859,92.788,6.0]
[1643430957124,0.25,92.858,92.788,6.0]
[1643430957325,0.25,92.858,92.789,4.49898488]
[1643430957523,0.25,92.858,92.79,4.24898488]
[1643430957924,0.25,92.858,92.791,0.25]
[1643430958125,0.25,92.858,92.792,4.24898488]
[1643430958326,0.25,92.858,92.793,0.25]
[1643430958523,0.25,92.858,92.794,4.24898488]
[1643430958923,0.25,92.858,92.795,0.25]
[1643430959423,0.25,92.858,92.796,4.24898488]
[1643430959826,0.25,92.858,92.797,0.25]
[1643430960025,0.25,92.858,92.798,3.79157198]
[1643430960226,35.11804699,92.859,92.798,3.79157198]
[1643430960426,35.11804699,92.859,92.799,0.25]
[1643430961026,35.11804699,92.859,92.79,2.92802179]
[1643430961428,35.11804699,92.859,92.78,2.92802179]
[1643430961626,0.25,92.858,92.777,2.92802179]
[1643430961826,3.20669142,92.858,92.781,2.92802179]
[1643430962028,0.25,92.858,92.791,6.0]
[1643430962327,0.25,92.858,92.792,0.25]
[1643430962527,12.93,92.88,92.792,6.25]
[1643430962727,12.93,92.89,92.792,6.25]
[1643430962927,12.93,92.9,92.793,2.92802179]
[1643430963129,12.93,92.9,92.803,6.0]
[1643430963331,12.93,92.9,92.804,0.25]
[1643430963529,40.84123289,92.899,92.807,6.0]
[1643430963728,40.84123289,92.899,92.804,0.25]
[1643430964028,0.25,92.898,92.808,6.25]
[1643430964229,0.25,92.898,92.808,6.0]
[1643430964428,0.25,92.898,92.809,0.25]
[1643430964631,0.25,92.898,92.804,6.0]
[1643430964830,0.25,92.898,92.809,0.25]
[1643430965530,0.25,92.898,92.804,6.0]
[1643430965729,0.25,92.898,92.805,0.25]
[1643430966932,0.25,92.898,92.802,6.0]
[1643430966933,0.25,92.898,92.803,0.25]
[1643430968136,16.165,92.89,92.803,0.25]
[1643430968337,16.165,92.89,92.802,0.25]
[1643430968338,0.25,92.889,92.802,0.25]
[1643430968539,0.25,92.889,92.801,6.0]
[1643430968735,0.25,92.889,92.802,0.25]
[1643430970337,40.84123289,92.899,92.802,0.25]
[1643430970338,0.25,92.898,92.802,0.25]
[1643430970737,0.25,92.898,92.785,2.92802179]
[1643430970937,12.93,92.89,92.785,2.92802179]
[1643430971141,25.96,92.89,92.786,0.25]
[1643430971337,3.20669142,92.889,92.786,0.25]
[1643430971538,36.53429544,92.869,92.786,0.25]
[1643430971939,0.25,92.868,92.786,0.25]
[1643430972340,0.25,92.868,92.778,0.25]
[1643430972539,0.25,92.868,92.777,2.92802179]
[1643430973345,0.25,92.868,92.78,2.92802179]
[1643430973543,0.25,92.868,92.79,6.0]
[1643430973745,0.25,92.868,92.787,2.92802179]
[1643430973946,0.25,92.868,92.796,6.0]
[1643430974143,0.25,92.868,92.798,108.8]
[1643430974364,0.25,92.868,92.799,0.25]
[1643430974965,0.25,92.868,92.805,2.92802179]
[1643430975165,0.25,92.868,92.806,2.92802179]
[1643430975363,0.25,92.868,92.807,0.25]
[1643430975764,0.25,92.868,92.807,3.17802179]
[1643430975965,0.25,92.868,92.807,0.25]
[1643430976164,0.25,92.868,92.808,2.92802179]
[1643430976368,0.25,92.868,92.807,2.92802179]
[1643430976765,0.25,92.868,92.808,2.92802179]
[1643430976966,0.25,92.868,92.809,2.92802179]
[1643430977167,0.25,92.868,92.808,2.92802179]
[1643430977966,0.25,92.868,92.823,2.92802179]
[1643430978166,0.25,92.868,92.797,4.40740506]
[1643430978167,0.25,92.868,92.825,2.92802179]
[1643430978367,0.25,92.868,92.826,2.92802179]
[1643430978566,0.25,92.868,92.827,2.92802179]
[1643430978769,0.25,92.868,92.827,0.42802179]
[1643430978968,0.25,92.868,92.826,0.42802179]
[1643430980170,0.25,92.868,92.81,0.25]
[1643430980568,0.25,92.868,92.811,6.0]
[1643430980769,0.25,92.868,92.812,0.25]
[1643430981572,36.53429544,92.869,92.812,0.25]
[1643430981970,36.53429544,92.869,92.811,0.25]
[1643430982574,36.53429544,92.869,92.811,6.25]
[1643430982772,0.25,92.868,92.811,6.25]
[1643430983173,0.25,92.868,92.816,6.0]
[1643430983373,0.25,92.868,92.817,0.25]
[1643430984575,0.25,92.868,92.818,6.0]
[1643430984775,0.25,92.868,92.819,0.25]
[1643430985177,16.163,92.9,92.819,109.05]
[1643430985575,16.163,92.9,92.829,6.0]
[1643430985777,16.16,92.92,92.83,0.25]
[1643430986177,42.73763725,92.919,92.83,6.25]
[1643430986378,42.73763725,92.919,92.83,109.05]
[1643430986578,0.25,92.918,92.84,6.0]
[1643430986780,0.25,92.918,92.841,0.25]
[1643430987377,42.73763725,92.919,92.841,0.25]
[1643430987977,42.73763725,92.919,92.875,1.4775592]
[1643430988178,42.73763725,92.919,92.877,1.4775592]
[1643430988378,42.73763725,92.919,92.876,1.4775592]
[1643430988781,0.25,92.918,92.876,1.4775592]
[1643430989080,0.25,92.918,92.873,1.4775592]
[1643430991284,2.95669142,92.917,92.821,4.40740506]
[1643430991486,2.95669142,92.917,92.811,108.8]
[1643430991685,0.25,92.916,92.812,0.25]
[1643430992100,2.95669142,92.915,92.821,6.0]
[1643430992286,0.25,92.914,92.822,0.25]
[1643430992488,16.162,92.91,92.809,4.40740506]
[1643430992689,34.6189383,92.899,92.796,4.40740506]
[1643430993087,0.25,92.898,92.806,6.0]
[1643430993888,0.25,92.898,92.807,0.25]
[1643430994088,0.25,92.898,92.808,6.0]
[1643430994291,0.25,92.898,92.809,0.25]
[1643430995392,34.6189383,92.899,92.809,0.25]
[1643430996092,34.6189383,92.899,92.81,6.0]
[1643430996291,34.6189383,92.899,92.819,108.8]
[1643430996692,0.25,92.898,92.829,6.0]
[1643430997295,0.25,92.898,92.83,0.25]
[1643430997493,15.53,92.94,92.83,0.25]
[1643430997697,48.6013,92.94,92.83,109.05]
[1643430998095,48.6013,92.94,92.841,108.8]
[1643430998294,48.6013,92.94,92.842,0.25]
[1643430998495,41.72814702,92.939,92.851,6.0]
[1643430998998,41.72814702,92.939,92.852,0.25]
[1643430998999,0.25,92.938,92.852,0.25]
[1643431005926,0.25,92.938,92.852,109.05]
[1643431006127,0.25,92.938,92.862,6.0]
[1643431006330,0.25,92.938,92.863,0.25]
[1643431006928,41.72814702,92.939,92.863,0.25]
[1643431007528,41.72814702,92.939,92.867,6.0]
[1643431007931,41.72814702,92.939,92.868,0.25]
[1643431008330,0.25,92.938,92.867,6.0]
[1643431009532,0.25,92.938,92.857,6.0]
[1643431009936,0.25,92.938,92.858,0.25]
[1643431010534,0.25,92.938,92.861,6.0]
[1643431010739,0.25,92.938,92.862,108.8]
[1643431010941,0.25,92.938,92.862,109.05]
[1643431011138,0.25,92.939,92.872,6.0]
[1643431011337,0.25,92.939,92.873,0.25]
[1643431011767,44.66442409,92.939,92.873,0.25]
[1643431011937,44.66442409,92.939,92.86,6.0]
[1643431012237,44.66442409,92.939,92.867,6.0]
[1643431012644,44.66442409,92.939,92.861,0.25]
[1643431013646,44.66442409,92.939,92.867,6.0]
[1643431014650,44.66442409,92.939,92.867,114.8]
[1643431014847,44.66442409,92.939,92.867,108.8]
[1643431017553,44.66442409,92.939,92.877,6.0]
[1643431018959,44.66442409,92.939,92.85,15.53]
[1643431019160,2.95669142,92.938,92.827,108.8]
[1643431019383,0.25,92.937,92.843,6.0]
[1643431019580,0.25,92.937,92.837,6.0]
[1643431019784,0.25,92.937,92.838,0.25]
[1643431019984,3.20669142,92.937,92.838,0.25]
[1643431021086,3.20669142,92.937,92.837,6.0]
[1643431021284,3.20669142,92.937,92.838,0.25]
[1643431021983,16.158,92.93,92.838,0.25]
[1643431022184,0.25,92.929,92.831,0.25]
[1643431022986,7.25,92.929,92.831,0.25]
[1643431023587,7.25,92.929,92.831,6.25]
[1643431023792,7.25,92.929,92.832,0.25]
[1643431023992,7.25,92.929,92.831,6.0]
[1643431024591,7.25,92.929,92.84,6.0]
[1643431024993,0.25,92.929,92.84,6.0]
[1643431025399,0.25,92.938,92.841,0.25]
[1643431025593,0.25,92.938,92.847,6.0]
[1643431025995,0.25,92.938,92.841,0.25]
[1643431026195,0.25,92.938,92.838,0.25]
[1643431026395,0.25,92.938,92.83,16.154]
[1643431026696,2.95669142,92.937,92.817,108.8]
[1643431026896,0.25,92.936,92.824,0.25]
[1643431027296,2.95669142,92.935,92.824,0.25]
[1643431027796,0.25,92.934,92.821,0.25]
[1643431028198,16.158,92.93,92.821,0.25]
[1643431028497,3.20669142,92.929,92.83,6.0]
[1643431028697,3.20669142,92.929,92.817,108.8]
[1643431028899,26.41329142,92.928,92.817,108.8]
[1643431029302,3.20669142,92.927,92.817,108.8]
[1643431029500,3.20669142,92.927,92.827,6.0]
[1643431029704,2.95669142,92.926,92.827,6.0]
[1643431030001,16.16,92.92,92.821,6.0]
[1643431030402,3.20669142,92.919,92.822,0.25]
[1643431030830,2.95669142,92.918,92.822,0.25]
[1643431031230,0.25,92.917,92.822,0.25]
[1643431031631,2.95669142,92.916,92.822,0.25]
[1643431031829,0.25,92.915,92.822,0.25]
[1643431032229,2.95669142,92.914,92.822,0.25]
[1643431032629,0.25,92.913,92.822,0.25]
[1643431032832,23.257,92.913,92.812,0.25]
[1643431033132,2.95669142,92.912,92.812,0.25]
[1643431033330,38.14350574,92.911,92.812,0.25]
[1643431033731,2.95669142,92.91,92.812,0.25]
[1643431033931,24.7082,92.909,92.812,0.25]
[1643431034331,24.7082,92.909,92.821,6.0]
[1643431034532,24.7082,92.909,92.812,0.25]
[1643431035741,2.95669142,92.908,92.812,0.25]
[1643431036141,10.45669142,92.908,92.812,0.25]
[1643431036339,0.25,92.907,92.812,0.25]
[1643431036538,3.20669142,92.907,92.812,0.25]
[1643431036738,2.95669142,92.906,92.812,0.25]
[1643431037438,0.25,92.905,92.812,0.25]
[1643431037837,2.95669142,92.904,92.812,0.25]
[1643431038240,16.164,92.9,92.812,0.25]
[1643431038637,0.25,92.899,92.812,0.25]
[1643431040141,0.25,92.903,92.821,6.0]
[1643431040440,0.25,92.903,92.822,0.25]
[1643431040643,0.25,92.903,92.812,0.25]
[1643431042342,7.2,92.903,92.812,0.25]
[1643431043244,0.25,92.903,92.812,0.25]
[1643431044748,16.164,92.9,92.812,0.25]
[1643431045145,0.25,92.899,92.812,0.25]
[1643431045746,0.25,92.899,92.811,108.8]
[1643431045950,16.165,92.89,92.787,4.40740506]
[1643431046145,16.165,92.89,92.767,108.8]
[1643431046146,43.70744115,92.889,92.773,4.40740506]
[1643431046346,46.66413257,92.889,92.768,24.3295]
[1643431046545,2.95669142,92.888,92.768,24.3295]
[1643431046945,23.3975,92.887,92.768,24.3295]
[1643431047345,16.168,92.88,92.768,24.3295]
[1643431047546,16.168,92.88,92.767,108.8]
[1643431047747,2.95669142,92.879,92.767,108.8]
[1643431048148,22.6705,92.878,92.782,6.0]
[1643431048348,22.6705,92.878,92.783,109.05]
[1643431048652,22.6705,92.878,92.794,108.8]
[1643431048849,0.25,92.877,92.795,0.25]
[1643431049148,0.25,92.877,92.805,108.8]
[1643431049356,0.25,92.877,92.806,0.25]
[1643431050052,0.25,92.877,92.807,4.1955065]
[1643431050349,0.25,92.877,92.808,0.25]
[1643431050550,0.25,92.877,92.809,4.1955065]
[1643431050950,0.25,92.877,92.81,0.25]
[1643431051457,0.25,92.877,92.811,4.1955065]
[1643431051851,0.25,92.877,92.821,6.0]
[1643431052551,0.25,92.877,92.812,0.25]
[1643431052752,0.25,92.877,92.813,4.19646283]
[1643431053152,0.25,92.877,92.823,6.0]
[1643431053352,0.25,92.877,92.824,0.25]
[1643431053755,16.161,92.92,92.825,4.19422407]
[1643431053952,47.0654,92.919,92.825,4.19422407]
[1643431054157,47.0654,92.919,92.836,108.8]
[1643431054454,47.0654,92.919,92.837,0.25]
[1643431054656,35.52613604,92.911,92.837,0.25]
[1643431054857,35.52613604,92.911,92.846,6.0]
[1643431055055,0.25,92.91,92.846,6.0]
[1643431055255,35.52613604,92.911,92.846,6.0]
[1643431055256,35.52613604,92.911,92.847,0.25]
[1643431055858,35.52613604,92.911,92.846,6.0]
[1643431056056,35.52613604,92.911,92.827,108.8]
[1643431056257,35.52613604,92.911,92.828,4.44675573]
[1643431056456,35.52613604,92.911,92.829,4.19675573]
[1643431056656,0.25,92.91,92.829,4.19675573]
[1643431056878,0.25,92.91,92.83,0.25]
[1643431057078,0.25,92.91,92.831,4.19675573]
[1643431057279,0.25,92.91,92.832,0.25]
[1643431057478,0.25,92.91,92.833,4.19675573]
[1643431057878,0.25,92.91,92.834,0.25]
[1643431058278,0.25,92.91,92.835,4.19842873]
[1643431058681,0.25,92.91,92.836,0.25]
[1643431058882,0.25,92.91,92.8,20.56640506]
[1643431059080,2.95669142,92.909,92.82,6.0]
[1643431059280,0.25,92.908,92.811,4.20001381]
[1643431059479,0.25,92.908,92.812,4.20001381]
[1643431059681,2.95669142,92.907,92.812,4.20001381]
[1643431059881,0.25,92.906,92.812,4.20001381]
[1643431060082,0.25,92.906,92.792,4.20001381]
[1643431060283,2.95669142,92.905,92.813,4.20001381]
[1643431060483,2.95669142,92.905,92.793,4.20001381]
[1643431060682,2.95669142,92.905,92.79,15.53]
[1643431060683,0.25,92.904,92.791,4.20001381]
[1643431060984,16.166,92.9,92.791,4.20001381]
[1643431061387,3.20669142,92.899,92.792,0.25]
[1643431061584,3.20669142,92.899,92.793,4.20001381]
[1643431061783,2.95669142,92.898,92.794,0.25]
[1643431061984,16.166,92.89,92.795,4.20001381]
[1643431062184,0.25,92.889,92.795,4.20001381]
[1643431062384,3.20669142,92.889,92.791,4.20001381]
[1643431062583,22.7638,92.889,92.788,4.20001381]
[1643431062783,2.95669142,92.888,92.788,4.20001381]
[1643431063185,23.8358,92.887,92.788,4.20001381]
[1643431063585,2.95669142,92.886,92.788,4.20001381]
[1643431063785,0.25,92.885,92.788,4.20001381]
[1643431063987,0.25,92.885,92.798,6.0]
[1643431064185,0.25,92.885,92.799,4.20001381]
[1643431064385,38.98234493,92.883,92.799,4.20001381]
[1643431064587,38.98234493,92.883,92.788,4.20001381]
[1643431064786,3.20669142,92.882,92.788,4.20001381]
[1643431064985,0.25,92.882,92.788,4.20001381]
[1643431065389,0.25,92.882,92.798,6.0]
[1643431065589,0.25,92.882,92.799,4.20001381]
[1643431065889,0.25,92.882,92.799,4.45001381]
[1643431066088,0.25,92.882,92.809,6.0]
[1643431066492,0.25,92.882,92.81,4.20001381]
[1643431066790,0.25,92.882,92.787,108.8]
[1643431067189,0.25,92.882,92.788,4.19707927]
[1643431067789,0.25,92.882,92.789,0.25]
[1643431067989,0.25,92.882,92.788,4.19707927]
[1643431068190,0.25,92.882,92.79,4.19707927]